Cogmind - Beta 12 @@@ ROGUE MODE // 2023.10.07 @ 16:16:19 Player: Figgis Result: Destroyed by D-53 Grenadier with Mini Grenade Launcher Performance ------------- Evolutions (0) 0 Regions Visited (2) 400 Robots Destroyed (15) 75 Value Destroyed (395) 395 Prototype IDs (0) 0 Alien Tech Used (0) 0 Bonus (0) 0 TOTAL SCORE: 870 Bonus ------- None Cogmind --------- Core Integrity 0/250 Matter 240/300 Energy 88/100 System Corruption 2% Temperature Cool (0) Movement Walking (260) Ox2 Location -10/Mines Parts ------- > --- POWER (1) -------- (None) > --- PROPULSION (2) --- Aluminum Leg > --- UTILITY (2) ------ Large Storage Unit Hardened Light Armor Plating > --- WEAPON (2) ------- Light Assault Rifle > --- INVENTORY (15) --- Improved Ion Engine Improved Ion Engine Huge Storage Unit Hardened Light Armor Plating Particle Gun Particle Gun Particle Gun Peak State ------------ > --- POWER ------------ Improved Ion Engine > --- PROPULSION ------- Aluminum Leg Aluminum Leg > --- UTILITY ---------- Small Storage Unit Hardened Light Armor Plating > --- WEAPON ----------- Particle Gun Particle Gun > --- INVENTORY -------- Improved Ion Engine Improved Ion Engine Aluminum Leg Huge Storage Unit Light Armor Plating Hardened Light Armor Plating Hardened Light Armor Plating Particle Gun [Rating: 12] Favorites ----------- Power Improved Ion Engine Engine Improved Ion Engine Propulsion Light Treads Treads Light Treads Leg Aluminum Leg Utility Small Storage Unit Storage Small Storage Unit Protection Light Armor Plating Weapon Assault Rifle Energy Gun Particle Gun Energy Cannon Beam Cannon Ballistic Gun Assault Rifle Build | -11 -10 -10 ------- Run | Jun Mat Min Slots Evolved . | . . . Power . | . . . Propulsion . | . . . Utility . | . . . Weapon . | . . . Parts Attached 26 | 6 16 4 Power 3 | 1 2 . Engine 3 | 1 2 . Core . | . . . Reactor . | . . . Propulsion 6 | 2 2 2 Treads 2 | 2 . . Leg 4 | . 2 2 Wheel . | . . . Hover . | . . . Flight . | . . . Utility 8 | 1 6 1 Device . | . . . Storage 4 | 1 3 . Processor . | . . . Hackware . | . . . Protection 4 | . 3 1 Artifact . | . . . Weapon 9 | 2 6 1 Energy Gun 4 | 1 3 . Energy Cannon 1 | . 1 . Ballistic Gun 4 | 1 2 1 Ballistic Cannon . | . . . Launcher . | . . . Special Weapon . | . . . Impact Weapon . | . . . Slashing Weapon . | . . . Piercing Weapon . | . . . Special Melee Weapon . | . . . Unidentified Prototypes . | . . . Parts Lost 6 | . . 6 Power 1 | . . 1 Propulsion 3 | . . 3 Utility 1 | . . 1 Weapon 1 | . . 1 Highest Loss Streak 5 | . . 5 To Critical Strikes 1 | . . 1 Average Slot Usage (%) 98 | . 98 97 Engine 13 | . 14 13 Treads 16 | . 21 . Leg 11 | . 6 26 Storage 14 | . 14 14 Protection 13 | . 13 14 Energy Gun 13 | . 10 21 Energy Cannon 5 | . 7 . Ballistic Gun 8 | . 9 5 Naked Turns . | . . . Heaviest Build 38 | 13 38 38 Greatest Support 40 | 40 40 20 Greatest Overweight (x) 2 | . 1 2 Average Overweight (x) . | . . 1 Largest Inventory Capacity 25 | 8 25 15 Average Capacity 9 | 7 8 15 Most Carried 9 | 5 9 9 Average Carried 7 | 2 7 8 Final Capacity 15 | 8 15 15 Final Carried 8 | 2 8 7 Class Distribution -------------------- 100% | Mutant Dominant Class ---------------- Mutant | -10/Materials Mutant | -10/Mines Resources | -11 -10 -10 ----------- Run | Jun Mat Min Matter Collected 593 | 214 285 94 Remotely . | . . . Salvage Created 465 | . 338 127 Parts 27 | . 23 4 Haulers Intercepted . | . . . Recyclers Shooed . | . . . Parts Field Recycled . | . . . Retrieved Matter . | . . . Parts Self-Destructed . | . . . Prevented . | . . . Kills | -11 -10 -10 ------- Run | Jun Mat Min Combat Hostiles Destroyed 12 | . 7 5 Guns 11 | . 6 5 Cannons 1 | . 1 . Classes Destroyed 4 | . 3 1 Worker 1 | . 1 . Watcher 2 | . 2 . Swarmer 3 | . . 3 Grunt 9 | . 7 2 Best Kill Streak 3 | . 3 2 Combat Bots Only 3 | . 3 2 Max Kills in Single Turn 1 | . 1 1 Gunslinging . | . . . Exploded . | . . . Melee . | . . . Uniques/NPCs Destroyed . | . . . Combat | -11 -10 -10 -------- Run | Jun Mat Min Damage Taken 1516 | . 683 833 Core 253 | . 92 161 Absorbed by Shields . | . . . Core Remaining (%) 100 | 100 . . Volleys Fired 58 | . 38 20 Largest 2 | . 2 2 Hottest 130 | . 100 130 Shots Fired 102 | . 74 28 Gun 89 | . 61 28 Cannon 13 | . 13 . Launcher . | . . . Special . | . . . Kinetic 38 | . 38 . Thermal 64 | . 36 28 Explosive . | . . . Electromagnetic . | . . . Robot Hit Streak 9 | . 9 4 Robot Miss Streak 4 | . 4 4 Penetration Max . | . . . Secondary Targets . | . . . Shots Hit Robots 57 | . 44 13 Core Hits 24 | . 18 6 Critical Kills . | . . . Critical Parts Destroyed 1 | . 1 . Critical Strikes 2 | . 1 1 Burn 1 | . . 1 Destroy 1 | . 1 . Melee Attacks . | . . . Impact . | . . . Slashing . | . . . Piercing . | . . . Sneak Attacks . | . . . Combat Hostiles . | . . . Follow-up Attacks . | . . . Damage Inflicted 835 | . 607 228 Guns 743 | . 520 223 Cannons 87 | . 87 . Explosions . | . . . Melee . | . . . Ramming 5 | . . 5 Kinetic 343 | . 343 . Thermal 487 | . 264 223 Explosive . | . . . Electromagnetic . | . . . Impact . | . . . Slashing . | . . . Piercing . | . . . Highest Corruption 2 | . 2 2 Average Corruption 2 | . 2 2 Corruption Purged . | . . . Corruption Blocked . | . . . Effects 19 | . 14 5 Message Errors 4 | . 3 1 Matter Fused 4 | . 3 1 Heat Flow Errors 3 | . 3 . Energy Discharges 4 | . 3 1 Data Loss (minor) 2 | . . 2 Misfires 1 | . 1 . Weapon Failures 1 | . 1 . Overload Shots . | . . . Overflow Damage . | . . . Projectiles . | . . . Explosions . | . . . Melee . | . . . Knockbacks . | . . . Impact . | . . . Kinetic . | . . . Secondary . | . . . Self-Inflicted Damage . | . . . Shots . | . . . Rammed . | . . . Targets Rammed 1 | . . 1 Kicked 1 | . . 1 Crushed . | . . . Highest Temperature 465 | . 372 465 Average Temperature 177 | . 141 239 Received Heat Transfer 450 | . 393 57 Effects 14 | . 4 10 Shutdowns 4 | . 1 3 Energy Bleed 1 | . 1 . Interference 2 | . . 2 Matter Decay 2 | . . 2 Short Circuit 1 | . 1 . Damage (minor) 2 | . 1 1 Damage (major) 2 | . . 2 Siege Activations . | . . . Robots Corrupted . | . . . Combat Hostiles . | . . . Parts Fried . | . . . Impact Corruptions . | . . . Robots Melted . | . . . Combat Hostiles . | . . . Parts Melted . | . . . Heat Transferred 1140 | . 585 555 Parts Sabotaged . | . . . Parts Stolen . | . . . Parts Stripped . | . . . Power Chain Reactions . | . . . Missiles Intercepted . | . . . Alert | -11 -10 -10 ------- Run | Jun Mat Min Peak Influence 189 | . 189 134 Initial 24 | . . 24 Average 70 | . 65 98 Maximum Alert Level . | . . . Low Security (%) 100 | 100 100 100 Level 1 . | . . . Level 2 . | . . . Level 3 . | . . . Level 4 . | . . . Level 5 . | . . . High Security . | . . . Max Security . | . . . Squads Dispatched 2 | . 2 . Investigation 2 | . 2 . Extermination . | . . . Reinforcement . | . . . Assault . | . . . Garrison . | . . . Intercept . | . . . Searches Triggered . | . . . Construction Impeded . | . . . Haulers Reinforced . | . . . Active Scanning Responses . | . . . Cargo Convoy Interrupts . | . . . Stealth | -11 -10 -10 --------- Run | Jun Mat Min Distress Signals 1 | . 1 . Communications Jammed . | . . . Distress Signals . | . . . Times Spotted 21 | . 14 7 Peak Tracking Total 5 | . 5 3 Tactical Retreats . | . . . Traps | -11 -10 -10 ------- Run | Jun Mat Min Traps Triggered 2 | . 2 . Indirectly . | . . . Trap Hack Attempts . | . . . Triggered . | . . . Disarmed . | . . . Reprogrammed . | . . . Reused . | . . . Traps Extracted . | . . . Installed . | . . . Triggered . | . . . Machines | -11 -10 -10 ---------- Run | Jun Mat Min Machines Disabled . | . . . Max in Single Turn . | . . . Machines Repaired . | . . . Machines Sabotaged . | . . . Overloaded Fab Kills . | . . . Hacking | -11 -10 -10 --------- Run | Jun Mat Min Machines Accessed 4 | . 4 . Terminals 4 | . 4 . Fabricators . | . . . Repair Stations . | . . . Recycling Units . | . . . Scanalyzers . | . . . Garrison Access . | . . . Total Hacks 8 | . 8 . Successful 2 | . 2 . Failed 5 | . 5 . Catastrophic 1 | . 1 . Database Lockouts 1 | . 1 . Manual 6 | . 6 . Terminals 8 | . 8 . Fabricators . | . . . Repair Stations . | . . . Recycling Units . | . . . Scanalyzers . | . . . Garrison Access . | . . . Terminal Hacks 2 | . 2 . Robot Analysis 1 | . 1 . Branch Access Points 1 | . 1 . Fabricator Hacks . | . . . Repair Station Hacks . | . . . Recycling Unit Hacks . | . . . Scanalyzer . | . . . Garrison Access Hacks . | . . . Unauthorized Hacks . | . . . Terminals . | . . . Fabricators . | . . . Repair Stations . | . . . Recycling Units . | . . . Scanalyzers . | . . . Garrison Access . | . . . Data Cores Recovered . | . . . Used . | . . . Hacking Detections 2 | . 2 . Full Trace Events . | . . . Feedback Events . | . . . Feedback Blocked . | . . . Robot Schematics Acquired . | . . . Robots Built . | . . . Authchips . | . . . Time . | . . . Total Robot Build Rating . | . . . Part Schematics Acquired . | . . . Parts Built . | . . . Authchips . | . . . Time . | . . . Total Part Build Rating . | . . . Parts Repaired . | . . . Time . | . . . Parts Recycled . | . . . Recycled Matter . | . . . Retrieved Matter . | . . . Retrieved Components . | . . . Parts Scanalyzed . | . . . Part Schematics Acquired . | . . . Parts Damaged . | . . . Bothacking | -11 -10 -10 ------------ Run | Jun Mat Min Used RIF Installer . | . . . Robots Hacked . | . . . Non-combat . | . . . Combat . | . . . Robot Hacks Applied . | . . . Relay Couplers Released . | . . . Fabnet Peak Effective % . | . . . Robots Rewired . | . . . Allies Hacked . | . . . Hacks Repelled . | . . . Allies | -11 -10 -10 -------- Run | Jun Mat Min Total Allies . | . . . Largest Group . | . . . Highest-Rated Group . | . . . Highest-Rated Ally . | . . . Total Orders . | . . . Ally Attacks . | . . . Total Damage . | . . . Kills . | . . . Allies Corrupted . | . . . Allies Melted . | . . . Intel | -11 -10 -10 ------- Run | Jun Mat Min Robot Analysis Total 1 | . 1 . Derelict Logs Recovered . | . . . Drone Launches . | . . . Drone Recoveries . | . . . Exploration | -11 -10 -10 ------------- Run | Jun Mat Min Turns Passed 1474 | 66 1085 323 Spaces Moved 729 | 45 563 121 Core 16 | 16 . . Treads 431 | 29 402 . Legs 282 | . 161 121 Wheels . | . . . Hover . | . . . Flight . | . . . Fastest Speed 50 | 50 120 190 Average Speed 160 | 120 156 190 Slowest Speed 260 | 160 190 260 Overloaded Moves . | . . . Propulsion Burnouts . | . . . Robots Hopped . | . . . Cave-ins Triggered . | . . . Exploration Rate (%) 36 | 3 82 25 Regions Visited 2 Branch Regions 1 Pre-discovered Areas . | . . . Known Exits Taken 1 | . 1 . Unknown Exits Taken 1 | 1 . . Scrap Searched . | . . . Spaces Dug . | . . . Terrain Destroyed . | . . . Melee . | . . . Projectile . | . . . AOE . | . . . Terrain Rammed . | . . . Walls Destroyed . | . . . Machines Disabled . | . . . Actions | -11 -10 -10 --------- Run | Jun Mat Min Total 936 | 55 696 185 Wait 82 | . 45 37 Move 727 | 44 562 121 Hop . | . . . Pick Up 23 | 5 16 2 Fast Attach 10 | 3 7 . Attach 7 | 3 1 3 Detach . | . . . Swap 9 | . 8 1 Drop 19 | . 19 . Fire 58 | . 38 20 Melee . | . . . Ram . | . . . Kick 1 | . . 1 Crush . | . . . Escape Stasis . | . . . Rewire . | . . . Trap . | . . . Miscellaneous . | . . . Route ------- -11/Junkyard -10/Materials (discovered 5 exits: [*Mat x3] / *Min x2) -10/Mines (discovered 1 exit: [*Mat]) History --------- Turn | Location | Event 24 | -11/Junkyard | Discovered new exit (range 12) 67 | -11/Junkyard | Entered Materials 315 | -10/Materials | Discovered new exit (range 10) 321 | -10/Materials | Build established: Mutant 414 | -10/Materials | Discovered new exit (range 14) 430 | -10/Materials | Identified exit to Mines 612 | -10/Materials | Central database locked down 891 | -10/Materials | Discovered new exit (range 13) 1152 | -10/Materials | Entered Mines 1373 | -10/Mines | Discovered new exit (range 6) 1444 | -10/Mines | Assembled infested the area 1449 | -10/Mines | Assisted by a Guerilla fighting off Assembled 1463 | -10/Mines | Core integrity fell below 50% 1469 | -10/Mines | Core integrity fell below 20% 1475 | -10/Mines | Destroyed by D-53 Grenadier with Mini Grenade Launcher Last Messages --------------- 01373_ EXIT=FOUND 01411_ Kicked K-01 Serf. 01444_ ALERT: Infestation in the mines, dispatching Demolisher response squad. 01449_ A derelict emerges from the shadows: "You need to get out of here! I've been tracking a group of Assembled to figure out where they're coming from, and they're closing on this area, come on!" 01450_ System corrupted: Matter fused (-9). 01454_ EN-3KH(h): "I'll hold them off! Go on ahead or try to find another way!" 01462_ C-30 ARC bursts open, deploying its payload. 01462_ D-53 Grenadier unfolds itself. 01462_ Aluminum Leg destroyed. 01465_ The unstable cave ceiling collapses. 01468_ Particle Gun destroyed. 01468_ Imp. Ion Engine destroyed. 01471_ Hrd. Light Armor Plating destroyed. 01473_ Aluminum Leg destroyed. 01473_ K-01 Serf destroyed. 01474_ The unstable cave ceiling collapses. Map ----- +----------------------------------------------------+ | | | ?????????????????????????????????????????????????? | | ?????????????????????????????????????????????????? | | ?????????????????????????????????????????????????? | | ?????????????????????????????????????????????????? | | ?????????????????????????????????????????????????? | | ?????????????????????????????????????????????????? | | ?????????????????????????????????????????????????? | | ?????????????????????????????????????????????????? | | ?????????????????????????????????????????????????? | | ?????????????????????????????????????????????????? | | ?????????????????????????????????????????????????? | | ?????????????????????????????????????????????????? | | ?????????????????????????????????????????????????? | | ??????????????###??????????????????????????????? | | ????###???## ##?????????????????????????????? | | ### #?## #?????????????????????????????? | | % ## ########??????????????????????? | | ##?????????????????????? | | ???????### ##????????????????????? | | ?????????## ###??????????????????? | | ??????????### ##?????????????####? | | ????????????## # #????????????## ## | | ?????????????# ## dd #????????????# # | | ?????????????# # #?????????##### # | | ?????????????# ## @ #?????????# # | | ?????????????######## ##?????????# ### # | | ???????????????????### = #???????### #?# ## | | ?????????????????????# % ##???????# #?# #? | | ?????????????????????## ##*###?######## ###?# ## | | ??????????????????????##?# #???# #???# # | | ?????????????????????????# #???# ########???# # | | ?????????????????????????# #???# #??????????# | | ?????????????????????????# #?### #??????????# | | ????????????????????????## ### #??????????# # | | ???????????????????????## ## ##?????????## # | | ???????????????????????# #??????????### # | | ???????????????????????# < #???????????# # | | ???????????????????????## #???????????# # | | ????????????????????????### #???????????# # | | ??????????????????????????## ## #??????###### # | | ???????????????????????????###### ##??????# # | | ???????????????????????###???????##???????# ###### | | ???????????????????????# ?????????????### #????? | | ???????????????????????# #????????????# ##???? | | ???????????????????????# ####????????# #???? | | ????????????????????????# ##???????# #???? | | ?????????????????????????# #??????## ##???? | | ??????????????????????????# ##????## #????? | | ???????????????????????????# ######[ #????? | +----------------------------------------------------+ Best States ------------- Heat Dissipation 25 Energy Generation 12 Energy Capacity 265 Matter Stores 300 Matter Capacity 300 Sight Range 16 Terrain Scan Density 10 Armor Coverage 150 Evasion (%) 55 Recoil Reduction 2 Item Schematics ----------------- None Robot Schematics ------------------ None Fabricated ------------ Nothing Alien Tech Used ----------------- None Achievements -------------- None Challenges ------------ None Game ------ Seed DimensionalKineticArchive Manual? 0 Play Time 00:11:25 Cumulative 28.7 hours Start 2023.10.07 @ 16:05:38 End 2023.10.07 @ 16:16:19 Sessions 1 Manual Loads 0 Difficulty Rogue Special Mode None Game No. 58 Rogue 55 Adventurer 3 Explorer 0 Win Type - Total 0 Types 0/0/0/0/0/0/0/0/0 Lore% 22 Gallery% 33 Achievement% 24 Wizard Run 0 Options --------- ASCII 0 Keyboard 0 Movement Mouse Keybinds 0 Fullscreen 2 Font 18/SmallcapsGlow Map View 76x50 Tactical HUD 1 Map Filters NONE Filters NONE Steam 1 RUN: 87fc7825-5de1-4ea7-a01a-fe75d9ee35f4